fUST/lending_fUST_20240731
["ID","MTS","AMOUNT","RATE_DAILY","PERIOD"]
[333705067,1722384640500,-500.0,0.00014689,2]
[333705068,1722384640509,-500.0,0.00014689,2]
[333705069,1722384640518,-224.27595518,0.00014689,2]
[333705070,1722384640527,-500.0,0.00014689,2]
[333705071,1722384640537,-502.08201003,0.00014689,2]
[333705072,1722384640546,-517.89212108,0.00014689,2]
[333705073,1722384640556,-500.0,0.00014689,2]
[333705074,1722384640565,-500.0,0.00014689,2]
[333705075,1722384640574,-500.0,0.00014689,2]
[333705076,1722384640584,-470.00421233,0.00014689,2]
[333705077,1722384640593,-504.37999604,0.00014689,2]
[333705078,1722384640602,-500.0,0.00014689,2]
[333705079,1722384640611,-279.53378509,0.00014689,2]
[333705080,1722384640621,-500.0,0.00014689,2]
[333705081,1722384640631,-500.0,0.00014689,2]
[333705082,1722384640640,-164.92704275,0.00014689,2]
[333705083,1722384640649,-500.0,0.00014689,2]
[333705084,1722384640658,-500.0,0.00014689,2]
[333705085,1722384640668,-500.0,0.00014689,2]
[333705086,1722384640677,-500.0,0.00014689,2]
[333705087,1722384640688,-500.0,0.00014689,2]
[333705088,1722384640697,-500.0,0.00014689,2]
[333705089,1722384640707,-500.0,0.00014689,2]
[333705090,1722384640716,-500.0,0.00014689,2]
[333705091,1722384640726,-500.0,0.00014689,2]
[333705092,1722384640735,-500.0,0.00014689,2]
[333705093,1722384640744,-500.0,0.00014689,2]
[333705094,1722384640753,-504.87496001,0.00014689,2]
[333705095,1722384640763,-500.0,0.00014689,2]
[333705096,1722384640773,-500.0,0.00014689,2]
[333705097,1722384640782,-500.0,0.00014689,2]
[333705098,1722384640791,-505.68171457,0.00014689,2]
[333705099,1722384640800,-500.0,0.00014689,2]
[333705100,1722384640809,-500.0,0.00014689,2]
[333705101,1722384640819,-500.0,0.00014689,2]
[333705102,1722384640828,-500.0,0.00014689,2]
[333705103,1722384640837,-312.80933271,0.00014689,2]
[333705104,1722384640847,-500.0,0.00014689,2]
[333705105,1722384640857,-191.445317,0.00014689,2]
[333705106,1722384640866,-191.445317,0.00014689,2]
[333705107,1722384640876,-191.445317,0.00014689,2]
[333705108,1722384640886,-191.445317,0.00014689,2]
[333705109,1722384640895,-191.445317,0.00014689,2]
[333705110,1722384640905,-191.445317,0.00014689,2]
[333705111,1722384640914,-191.445317,0.00014689,2]
[333705112,1722384640923,-191.445317,0.00014689,2]
[333705113,1722384640933,-191.445317,0.00014689,2]
[333705114,1722384640950,-191.445317,0.00014689,2]
[333705115,1722384640966,-191.445317,0.00014689,2]
[333705116,1722384640976,-191.445317,0.00014689,2]
[333705117,1722384640986,-191.445317,0.00014689,2]
[333705118,1722384640995,-191.445317,0.00014689,2]
[333705119,1722384641006,-191.445317,0.00014689,2]
[333705120,1722384641016,-191.445317,0.00014689,2]
[333705121,1722384641026,-191.445317,0.00014689,2]
[333705122,1722384641037,-191.44530993,0.00014689,2]
[333705123,1722384641047,-151.0,0.00014689,2]
[333705124,1722384641056,-151.0,0.00014689,2]
[333705125,1722384641065,-151.0,0.00014689,2]
[333705126,1722384641075,-151.0,0.00014689,2]
[333705127,1722384641084,-151.0,0.00014689,2]
[333705128,1722384641093,-151.0,0.00014689,2]
[333705129,1722384641103,-151.0,0.00014689,2]
[333705130,1722384641113,-151.0,0.00014689,2]
[333705131,1722384641122,-151.0,0.00014689,2]
[333705132,1722384641132,-151.0,0.00014689,2]
[333705133,1722384641142,-151.0,0.00014689,2]
[333705134,1722384641154,-151.0,0.00014689,2]
[333705135,1722384641163,-162.012201,0.00014689,2]
[333705136,1722384641174,-151.0,0.00014689,2]
[333705137,1722384641184,-151.0,0.00014689,2]
[333705138,1722384641196,-151.0,0.00014689,2]
[333705139,1722384641205,-151.0,0.00014689,2]
[333705140,1722384641216,-151.0,0.00014689,2]
[333705141,1722384641227,-151.0,0.00014689,2]
[333705142,1722384641238,-151.0,0.00014689,2]
[333705143,1722384641248,-231.49535136,0.00014689,2]
[333705144,1722384641256,-151.0,0.00014689,2]
[333705145,1722384641266,-151.0,0.00014689,2]
[333705146,1722384641276,-151.0,0.00014689,2]
[333705147,1722384641285,-151.0,0.00014689,2]
[333705148,1722384641295,-151.0,0.00014689,2]
[333705149,1722384641306,-500.0,0.00014689,2]
[333705150,1722384641315,-500.0,0.00014689,2]
[333705151,1722384641325,-500.0,0.00014689,2]
[333705152,1722384641334,-500.0,0.00014689,2]
[333705153,1722384641344,-151.0,0.00014689,2]
[333705154,1722384641353,-151.0,0.00014689,2]
[333705155,1722384641363,-151.0,0.00014689,2]
[333705156,1722384641372,-151.0,0.00014689,2]
[333705157,1722384641381,-151.0,0.00014689,2]
[333705158,1722384641390,-151.0,0.00014689,2]
[333705159,1722384641400,-211.069489,0.00014689,2]
[333705160,1722384641410,-558.89352135,0.0001469,2]
[333705161,1722384641419,-1566.20925357,0.0001469,2]
[333705162,1722384641428,-2094.53119356,0.0001469,2]
[333705163,1722384641439,-1909.26238614,0.0001469,2]
[333705164,1722384641448,-245.09694187,0.0001469,2]
[333705165,1722384641457,-527.0441706,0.0001469,2]
[333705166,1722384641466,-346.6801112,0.0001469,2]
[333705167,1722384641476,-24720.47450979,0.0001469,2]
[333705168,1722384641528,-292.71363196,0.0001459,2]
[333705169,1722384641538,-12988.5684703,0.0001469,2]
[333705170,1722384641547,-373.33555803,0.00014691,2]
[333705171,1722384641556,-170.08129814,0.00014691,2]
[333705172,1722384641566,-689.2817922,0.00014694,2]
[333705173,1722384641576,-150.112233,0.000147,2]
[333705174,1722384641585,-150.112233,0.000147,2]
[333705175,1722384641595,-3000.0,0.000147,30]
[333705176,1722384641604,-150.112233,0.000147,2]
[333705177,1722384641614,-3000.0,0.0001471,30]
[333705178,1722384641624,-3000.0,0.0001472,30]
[333705179,1722384641633,-3000.0,0.0001473,30]
[333705180,1722384641643,-500.0,0.00014739,2]
[333705181,1722384641653,-3000.0,0.0001474,30]
[333705182,1722384641663,-3000.0,0.0001475,30]
[333705183,1722384641672,-3000.0,0.0001476,30]
[333705184,1722384641682,-3000.0,0.0001477,30]
[333705185,1722384641695,-3000.0,0.0001478,30]
[333705186,1722384641705,-12988.5684703,0.00014783,2]
[333705187,1722384641716,-500.0,0.00014783,2]
[333705188,1722384641726,-186.56715345,0.00014783,2]
[333705200,1722384642743,-0.91738522,0.00014783,2]
[333705201,1722384642753,-789.74,0.00014783,2]
[333705202,1722384642763,-588.01255096,0.00014783,2]
[333705203,1722384642775,-290.08744904,0.00014783,2]
[333705204,1722384642785,-913.55,0.00014783,2]
[333705205,1722384642796,-500.0,0.00014783,2]
[333705206,1722384642806,-500.0,0.00014783,2]
[333705207,1722384642816,-500.0,0.00014783,2]
[333705208,1722384642826,-500.0,0.00014783,2]
[333705209,1722384642835,-237.16478942,0.00014783,2]
[333705210,1722384642847,-262.83521058,0.00014783,2]
[333705211,1722384642857,-500.0,0.00014783,2]
[333705212,1722384642866,-500.0,0.00014783,2]
[333705213,1722384642876,-444.26921326,0.00014783,2]
[333705215,1722384643033,-55.73078674,0.00014783,2]
[333705216,1722384643045,-303.92500426,0.00014783,2]
[333705221,1722384647346,-500.0,0.00014586,2]
[333705222,1722384647357,-151.0,0.00014688,2]
[333705223,1722384647367,-151.0,0.00014688,2]
[333705224,1722384647377,-151.0,0.00014689,2]
[333705225,1722384647387,-151.0,0.00014689,2]
[333705226,1722384647396,-335.19499574,0.00014783,2]
[333705227,1722384647406,-500.0,0.00014783,2]
[333705228,1722384647416,-500.0,0.00014783,2]
[333705229,1722384647426,-500.0,0.00014783,2]
[333705230,1722384647435,-500.0,0.00014783,2]
[333705231,1722384647446,-500.0,0.00014783,2]
[333705232,1722384647458,-500.0,0.00014783,2]
[333705233,1722384647468,-500.0,0.00014783,2]
[333705234,1722384647477,-500.0,0.00014783,2]
[333705235,1722384647486,-500.0,0.00014783,2]
[333705236,1722384647495,-500.0,0.00014783,2]
[333705237,1722384647504,-500.0,0.00014783,2]
[333705238,1722384647513,-500.0,0.00014783,2]
[333705239,1722384647523,-500.0,0.00014783,2]
[333705240,1722384647532,-500.0,0.00014783,2]
[333705241,1722384647542,-500.0,0.00014783,2]
[333705242,1722384647551,-516.12729304,0.00014783,2]
[333705243,1722384647560,-255.59680658,0.00014784,5]
[333705244,1722384647571,-6008.05355642,0.00014784,2]
[333705245,1722384648263,-12502.6706036,0.00014784,2]
[333705246,1722384648276,-374.9181638,0.00014784,2]
[333705253,1722385625124,-240.58570058,0.00012859,2]
[333705254,1722385650092,-22.83504412,0.00012859,2]
[333705255,1722385650113,-158.441376,0.00012986,2]
[333705256,1722385650135,-300.0,0.00013011,2]
[333705257,1722385650159,-518.72357988,0.00013012,2]
[333705270,1722385754167,-158.441376,0.00012986,2]
[333705271,1722385754189,-300.0,0.00013249,2]
[333705272,1722385754214,-24900.0,0.0001325,2]
[333705328,1722385832722,-300.0,0.00013597,2]
[333705330,1722385832731,-464.51,0.00013598,2]
[333705401,1722385837927,-319.2398709,0.00013598,2]
[333705402,1722385837985,-5940.65661486,0.00013598,2]
[333705403,1722385837995,-1661.90454275,0.00013598,2]
[333705404,1722385838005,-22582.77871028,0.000136,2]
[333705405,1722385838015,-14629.46680338,0.00013688,2]
[333705406,1722385838024,-500.0,0.00013698,2]
[333705407,1722385838034,-503.69390371,0.00013698,2]
[333705408,1722385838043,-503.8940987,0.00013698,2]
[333705409,1722385838052,-200.0,0.00013698,2]
[333705410,1722385838062,-287.86222759,0.00013698,2]
[333705411,1722385838071,-3000.0,0.00013699,2]
[333705412,1722385838081,-355.0,0.00013699,2]
[333705413,1722385838090,-668.63746,0.00013699,2]
[333705414,1722385838100,-292.71363196,0.00014205,2]
[333705415,1722385838109,-193.775647,0.00014247,2]
[333705416,1722385838119,-676.875,0.00014247,2]
[333705417,1722385838131,-418.7490144,0.00014247,2]
[333705418,1722385838141,-306.0,0.00014247,2]
[333705419,1722385838151,-153.0,0.00014247,2]
[333705420,1722385838160,-153.0,0.00014247,2]
[333705421,1722385838169,-153.0,0.00014247,2]
[333705422,1722385838180,-24183.6761204,0.00014288,2]
[333705423,1722385838190,-367.69126021,0.00014297,2]
[333705424,1722385838201,-4443.71676569,0.00014321,2]
[333705425,1722385838212,-500.0,0.00014584,2]
[333705426,1722385838224,-500.0,0.00014584,2]
[333705427,1722385838234,-500.0,0.00014584,2]
[333705428,1722385838245,-500.0,0.00014584,2]
[333705429,1722385838255,-500.0,0.00014584,2]
[333705430,1722385838267,-500.0,0.00014584,2]
[333705431,1722385838277,-500.0,0.00014584,2]
[333705432,1722385838286,-500.0,0.00014584,2]
[333705433,1722385838296,-500.0,0.00014584,2]
[333705434,1722385838306,-500.0,0.00014584,2]
[333705435,1722385838316,-500.0,0.00014585,2]
[333705436,1722385838326,-500.0,0.00014585,2]
[333705437,1722385838336,-500.0,0.00014585,2]
[333705438,1722385838348,-500.0,0.00014585,2]
[333705439,1722385838357,-500.0,0.00014585,2]
[333705440,1722385838366,-500.0,0.00014585,2]
[333705441,1722385838377,-500.0,0.00014585,2]
[333705442,1722385838386,-500.0,0.00014585,2]
[333705443,1722385838396,-500.0,0.00014585,2]
[333705444,1722385838405,-500.0,0.00014585,2]
[333705445,1722385838416,-500.0,0.00014585,2]
[333705446,1722385838426,-500.0,0.00014585,2]
[333705447,1722385838436,-500.0,0.00014585,2]
[333705448,1722385838445,-500.0,0.00014585,2]
[333705449,1722385838455,-500.0,0.00014585,2]
[333705450,1722385838464,-500.0,0.00014585,2]
[333705451,1722385838474,-500.0,0.00014585,2]
[333705452,1722385838483,-500.0,0.00014585,2]
[333705453,1722385838492,-500.0,0.00014585,2]
[333705454,1722385838502,-500.0,0.00014585,2]
[333705455,1722385838512,-500.0,0.00014585,2]
[333705456,1722385838522,-500.0,0.00014585,2]
[333705457,1722385838532,-500.0,0.00014585,2]
[333705458,1722385838541,-500.0,0.00014585,2]
[333705459,1722385838551,-500.0,0.00014585,2]
[333705460,1722385838560,-500.0,0.00014585,2]
[333705461,1722385838573,-500.0,0.00014585,2]
[333705462,1722385838583,-500.0,0.00014585,2]
[333705463,1722385838592,-500.0,0.00014585,2]
[333705464,1722385838601,-500.0,0.00014585,2]
[333705465,1722385838610,-500.0,0.00014585,2]
[333705466,1722385838619,-500.0,0.00014585,2]
[333705467,1722385838628,-500.0,0.00014585,2]
[333705468,1722385838638,-500.0,0.00014585,2]
[333705469,1722385838647,-500.0,0.00014585,2]
[333705470,1722385838657,-500.0,0.00014585,2]
[333705471,1722385838667,-535.27528348,0.00014585,2]
[333705472,1722385838679,-500.0,0.00014585,2]
[333705473,1722385838689,-500.0,0.00014585,2]
[333705474,1722385838699,-500.0,0.00014585,2]
[333705475,1722385838709,-500.0,0.00014586,2]
[333705476,1722385838720,-186.56715345,0.00014586,2]
[333705477,1722385838729,-482.41493037,0.00014586,2]
[333705478,1722385838739,-500.0,0.00014586,2]
[333705479,1722385838748,-500.0,0.00014586,2]
[333705480,1722385838758,-500.0,0.00014586,2]
[333705481,1722385838767,-500.0,0.00014586,2]
[333705482,1722385838777,-533.85,0.00014586,2]
[333705483,1722385838786,-500.0,0.00014586,2]
[333705484,1722385838795,-500.0,0.00014586,2]
[333705485,1722385838805,-500.0,0.00014586,2]
[333705486,1722385838814,-500.0,0.00014586,2]
[333705487,1722385838824,-500.0,0.00014586,2]
[333705488,1722385838833,-500.0,0.00014586,2]
[333705489,1722385838843,-500.0,0.00014586,2]
[333705490,1722385838853,-500.0,0.00014586,2]
[333705491,1722385838863,-622.55457592,0.00014586,2]
[333705492,1722385838872,-500.0,0.00014586,2]
[333705493,1722385838882,-500.0,0.00014586,2]
[333705494,1722385838891,-500.0,0.00014586,2]
[333705495,1722385838901,-264.3,0.00014586,2]
[333705496,1722385838910,-500.0,0.00014586,2]
[333705497,1722385838920,-500.0,0.00014586,2]
[333705498,1722385838932,-500.0,0.00014586,2]
[333705499,1722385838942,-500.0,0.00014586,2]
[333705500,1722385838951,-500.0,0.00014586,2]
[333705501,1722385838966,-500.0,0.00014586,2]
[333705502,1722385838975,-500.0,0.00014586,2]
[333705503,1722385838985,-500.0,0.00014586,2]
[333705504,1722385838994,-500.0,0.00014586,2]
[333705505,1722385839003,-500.0,0.00014586,2]
[333705506,1722385839012,-500.0,0.00014586,2]
[333705507,1722385839022,-404.56712374,0.00014586,2]
[333705508,1722385839031,-150.112233,0.000146,2]
[333705509,1722385839040,-379.33440886,0.00014666,2]
[333705510,1722385839049,-500.0,0.00014666,2]
[333705511,1722385839059,-500.0,0.00014666,2]
[333705512,1722385839068,-500.0,0.00014666,2]
[333705513,1722385839078,-500.0,0.00014666,2]
[333705514,1722385839087,-500.0,0.00014666,2]
[333705515,1722385839097,-500.0,0.00014666,2]
[333705516,1722385839106,-646.64576527,0.00014666,2]
[333705517,1722385839116,-631.1379297,0.00014666,2]
[333705518,1722385839125,-500.0,0.00014666,2]
[333705519,1722385839134,-477.82957409,0.00014666,2]
[333705520,1722385839147,-22.17042591,0.00014666,2]
[333705521,1722385839156,-500.0,0.00014666,2]
[333705522,1722385839166,-176.24157983,0.00014666,2]
[333705523,1722385839180,-323.75842017,0.00014666,2]
[333705524,1722385839190,-18.16894853,0.00014666,2]
[333705525,1722385839202,-164.56640603,0.00014666,2]
[333705526,1722385839211,-27847.3109424,0.00014667,2]
[333705527,1722385839221,-500.0,0.00014677,2]
[333705528,1722385839233,-506.49774557,0.00014677,2]
[333705529,1722385839243,-500.0,0.00014677,2]
[333705530,1722385839253,-500.0,0.00014677,2]
[333705531,1722385839264,-500.0,0.00014677,2]
[333705532,1722385839274,-500.0,0.00014677,2]
[333705533,1722385839284,-500.0,0.00014677,2]
[333705534,1722385839293,-500.0,0.00014677,2]
[333705535,1722385839303,-500.0,0.00014677,2]
[333705536,1722385839313,-306.12727454,0.00014677,2]
[333705537,1722385839323,-500.0,0.00014677,2]
[333705538,1722385839334,-489.71425071,0.00014677,2]
[333705539,1722385839346,-500.0,0.00014677,2]
[333705540,1722385839356,-325.34352641,0.00014677,2]
[333705541,1722385839365,-520.00290493,0.00014677,2]
[333705542,1722385839375,-500.0,0.00014677,2]
[333705543,1722385839384,-500.0,0.00014677,2]
[333705544,1722385839394,-500.0,0.00014677,2]
[333705545,1722385839403,-500.0,0.00014677,2]
[333705546,1722385839416,-614.24581285,0.00014677,2]
[333705547,1722385839427,-500.0,0.00014677,2]
[333705548,1722385839438,-500.0,0.00014677,2]
[333705549,1722385839447,-500.0,0.00014677,2]
[333705550,1722385839457,-500.0,0.00014677,2]
[333705551,1722385839467,-500.0,0.00014677,2]
[333705552,1722385839476,-500.0,0.00014677,2]
[333705553,1722385839486,-500.0,0.00014677,2]
[333705554,1722385839495,-500.0,0.00014677,2]
[333705555,1722385839505,-500.0,0.00014677,2]
[333705557,1722385839515,-500.0,0.00014677,2]
[333705558,1722385839525,-400.0,0.00014677,2]
[333705559,1722385839534,-500.0,0.00014677,2]
[333705560,1722385839544,-500.0,0.00014677,2]
[333705561,1722385839554,-500.0,0.00014677,2]
[333705562,1722385839563,-500.0,0.00014677,2]
[333705564,1722385839573,-500.0,0.00014677,2]
[333705565,1722385839582,-500.0,0.00014677,2]
[333705567,1722385839591,-551.04529584,0.00014677,2]
[333705568,1722385839600,-500.0,0.00014677,2]
[333705569,1722385839610,-214.03367479,0.00014677,2]
[333705570,1722385839620,-637.6329122,0.00014677,2]
[333705571,1722385839629,-500.0,0.00014677,2]
[333705572,1722385839640,-500.0,0.00014677,2]
[333705573,1722385839649,-500.0,0.00014677,2]
[333705574,1722385839659,-500.0,0.00014677,2]
[333705575,1722385839669,-500.0,0.00014677,2]
[333705576,1722385839681,-500.0,0.00014677,2]
[333705579,1722385839692,-500.0,0.00014677,2]
[333705581,1722385839701,-500.0,0.00014677,2]
[333705583,1722385839711,-500.0,0.00014677,2]
[333705585,1722385839720,-500.0,0.00014677,2]
[333705587,1722385839730,-500.0,0.00014677,2]
[333705589,1722385839740,-823.19,0.00014678,2]
[333705591,1722385839750,-500.0,0.00014678,2]
[333705593,1722385839760,-500.0,0.00014678,2]
[333705595,1722385839769,-500.0,0.00014678,2]
[333705597,1722385839781,-500.0,0.00014678,2]
[333705598,1722385839791,-1842.66,0.00014678,2]
[333705599,1722385839801,-500.0,0.00014678,2]
[333705600,1722385839810,-500.0,0.00014678,2]
[333705601,1722385839820,-354.46,0.00014678,2]
[333705602,1722385839829,-1055.18,0.00014678,2]
[333705603,1722385839839,-289.64,0.00014678,2]
[333705604,1722385839848,-500.0,0.00014678,2]
[333705605,1722385839857,-500.0,0.00014678,2]
[333705606,1722385839868,-500.0,0.00014678,2]
[333705607,1722385839878,-432.9,0.00014678,2]
[333705608,1722385839889,-500.0,0.00014678,2]
[333705609,1722385839901,-309.95093972,0.00014678,2]
[333705611,1722385839912,-500.0,0.00014678,2]
[333705613,1722385839924,-436.32,0.00014678,2]
[333705615,1722385839935,-429.82,0.00014678,2]
[333705616,1722385839946,-500.0,0.00014678,2]
[333705617,1722385839959,-500.0,0.00014678,2]
[333705618,1722385839968,-500.0,0.00014678,2]
[333705619,1722385839977,-500.0,0.00014678,2]
[333705620,1722385839987,-500.0,0.00014678,2]
[333705621,1722385839996,-500.0,0.00014678,2]
[333705622,1722385840005,-500.0,0.00014678,2]
[333705623,1722385840014,-514.625358,0.00014678,2]
[333705624,1722385840023,-500.0,0.00014678,2]
[333705625,1722385840032,-500.0,0.00014678,2]
[333705627,1722385840041,-500.0,0.00014678,2]
[333705629,1722385840051,-500.0,0.00014678,2]
[333705631,1722385840061,-500.0,0.00014678,2]
[333705633,1722385840071,-500.0,0.00014678,2]
[333705635,1722385840080,-151.0,0.00014678,2]
[333705637,1722385840091,-151.0,0.00014678,2]
[333705639,1722385840102,-500.0,0.00014679,2]
[333705640,1722385840112,-500.0,0.00014679,2]
[333705642,1722385840122,-518.53,0.00014679,2]
[333705644,1722385840132,-500.0,0.00014679,2]
[333705646,1722385840142,-500.0,0.00014679,2]
[333705648,1722385840153,-500.0,0.00014679,2]
[333705650,1722385840163,-500.0,0.00014679,2]
[333705652,1722385840173,-151.0,0.00014679,2]
[333705654,1722385840185,-151.0,0.00014679,2]
[333705656,1722385840195,-583.33,0.00014688,2]
[333705658,1722385840207,-500.0,0.00014688,2]
[333705659,1722385840218,-500.0,0.00014688,2]
[333705660,1722385840230,-500.0,0.00014688,2]
[333705661,1722385840242,-1075.94,0.00014688,2]
[333705662,1722385840254,-374.31,0.00014688,2]
[333705663,1722385840265,-499.0,0.00014688,2]
[333705664,1722385840275,-1111.18,0.00014688,2]
[333705665,1722385840284,-500.0,0.00014688,2]
[333705666,1722385840294,-500.0,0.00014688,2]
[333705667,1722385840304,-500.0,0.00014688,2]
[333705668,1722385840313,-500.0,0.00014688,2]
[333705669,1722385840323,-500.0,0.00014688,2]
[333705670,1722385840333,-500.0,0.00014688,2]
[333705671,1722385840345,-500.0,0.00014688,2]
[333705672,1722385840355,-500.0,0.00014688,2]
[333705673,1722385840364,-500.0,0.00014688,2]
[333705674,1722385840374,-501.46007152,0.00014688,2]
[333705675,1722385840385,-500.0,0.00014688,2]
[333705676,1722385840395,-500.0,0.00014688,2]
[333705677,1722385840405,-500.0,0.00014688,2]
[333705678,1722385840415,-500.0,0.00014688,2]
[333705679,1722385840426,-258.76299208,0.00014688,2]
[333705680,1722385840435,-500.0,0.00014688,2]
[333705681,1722385840444,-515.21616826,0.00014688,2]
[333705682,1722385840454,-151.0,0.00014688,2]
[333705683,1722385840464,-151.0,0.00014688,2]
[333705684,1722385840474,-994.72570318,0.0001469,2]
[333705685,1722385840484,-291.18352462,0.0001469,2]
[333705686,1722385840493,-151.0,0.0001469,2]
[333705687,1722385840503,-151.0,0.0001469,2]
[333705688,1722385840513,-151.0,0.0001469,2]
[333705689,1722385840523,-27847.3109424,0.0001469,2]
[333705690,1722385840533,-150.112233,0.000147,2]
[333705691,1722385840542,-3000.0,0.000147,30]
[333705692,1722385840552,-151.0,0.000147,2]
[333705693,1722385840561,-151.0,0.000147,2]
[333705694,1722385840571,-500.0,0.00014709,2]
[333705695,1722385840581,-576.18,0.00014709,2]
[333705696,1722385840591,-500.0,0.00014709,2]
[333705697,1722385840600,-3000.0,0.0001471,30]
[333705698,1722385840610,-3000.0,0.0001472,30]
[333705699,1722385840620,-3000.0,0.0001473,30]
[333705700,1722385840630,-3000.0,0.0001474,30]
[333705701,1722385840642,-3000.0,0.0001475,30]
[333705702,1722385840653,-3000.0,0.0001476,30]
[333705703,1722385840663,-500.0,0.0001476,2]
[333705704,1722385840675,-151.0,0.0001476,2]
[333705705,1722385840686,-151.0,0.0001476,2]
[333705706,1722385840695,-151.0,0.0001476,2]
[333705707,1722385840706,-500.0,0.0001476,2]
[333705708,1722385840716,-3000.0,0.0001477,30]
[333705709,1722385840727,-3000.0,0.0001478,30]
[333705710,1722385840738,-160.0,0.00014782,5]
[333705711,1722385840747,-255.59680657,0.00014783,5]
[333705712,1722385840757,-500.0,0.00014783,2]
[333705713,1722385840767,-326.65,0.00014783,2]
[333705714,1722385840778,-500.0,0.00014783,2]
[333705715,1722385840790,-500.0,0.00014783,2]
[333705716,1722385840800,-500.0,0.00014783,2]
[333705717,1722385840812,-500.0,0.00014783,2]
[333705718,1722385840822,-167083.865654,0.00014784,2]
[333705719,1722385840834,-151.0,0.00014784,2]
[333705720,1722385840844,-157.159592,0.00014784,2]
[333705721,1722385840855,-151.0,0.00014784,2]
[333705722,1722385840865,-3000.0,0.0001479,30]
[333705723,1722385840875,-500.0,0.00014793,2]
[333705724,1722385840884,-500.0,0.00014793,2]
[333705725,1722385840894,-500.0,0.00014793,2]
[333705726,1722385840903,-500.0,0.00014793,2]
[333705727,1722385840914,-500.0,0.00014793,2]
[333705728,1722385840927,-500.0,0.00014793,2]
[333705729,1722385840937,-500.0,0.00014793,2]
[333705730,1722385840946,-500.0,0.00014793,2]
[333705731,1722385840956,-500.0,0.00014793,2]
[333705732,1722385840966,-233.94063619,0.00014793,2]
[333705733,1722385840976,-476.26829146,0.00014794,2]
[333705734,1722385840986,-500.0,0.00014794,2]
[333705735,1722385840995,-1960.72,0.00014794,2]
[333705736,1722385841004,-500.0,0.00014794,2]
[333705737,1722385841015,-937.93,0.00014794,2]
[333705738,1722385841025,-2157.48,0.00014794,2]
[333705739,1722385841035,-2465.5,0.00014794,2]
[333705740,1722385841046,-500.0,0.00014794,2]
[333705741,1722385841056,-1673.44,0.00014794,2]
[333705742,1722385841066,-500.0,0.00014794,2]
[333705743,1722385841076,-500.0,0.00014794,2]
[333705744,1722385841085,-500.0,0.00014794,2]
[333705745,1722385841095,-367.50987898,0.00014794,2]
[333705746,1722385841105,-625.78,0.00014794,2]
[333705747,1722385841114,-1069.8,0.00014794,2]
[333705748,1722385841123,-500.0,0.00014794,2]
[333705749,1722385841132,-3270.37,0.00014794,2]
[333705750,1722385841307,-561.14,0.00014794,2]
[333705751,1722385841317,-211.83230101,0.00014794,2]
[333705752,1722385841327,-3034.73,0.00014794,2]
[333705753,1722385841339,-1784.23,0.00014794,2]
[333705754,1722385841348,-874.45,0.00014794,2]
[333705755,1722385841358,-1462.87,0.00014794,2]
[333705756,1722385841367,-547.02,0.00014794,2]
[333705757,1722385841376,-634.81,0.00014794,2]
[333705758,1722385841387,-500.0,0.00014794,2]
[333705759,1722385841395,-166.29575961,0.00014794,2]